fUST/lending_fUST_20250726
["ID","MTS","AMOUNT","RATE_DAILY","PERIOD"]
[375139478,1753541450149,-152.0,0.00023988,3]
[375139479,1753541450158,-1754.0,0.00023988,3]
[375139480,1753541450168,-152.0,0.00023988,3]
[375139481,1753541450178,-1754.0,0.00023988,3]
[375139482,1753541450187,-152.0,0.00023988,3]
[375139483,1753541450197,-1754.0,0.00023988,3]
[375139484,1753541450207,-152.0,0.00023988,3]
[375139485,1753541450216,-1754.0,0.00023988,3]
[375139486,1753541450225,-152.0,0.00023988,3]
[375139487,1753541450235,-1754.0,0.00023988,3]
[375139488,1753541450244,-152.0,0.00023988,3]
[375139489,1753541450254,-1754.0,0.00023988,3]
[375139490,1753541450263,-152.0,0.00023988,3]
[375139491,1753541450273,-1754.0,0.00023988,3]
[375139492,1753541450283,-152.0,0.00023988,3]
[375139493,1753541450292,-1754.0,0.00023988,3]
[375139494,1753541450302,-152.0,0.00023988,3]
[375139495,1753541450311,-1754.0,0.00023988,3]
[375139496,1753541450322,-174.72074456,0.00023988,3]
[375139497,1753541450331,-152.0,0.00023988,3]
[375139498,1753541450340,-1754.0,0.00023988,3]
[375139499,1753541450350,-152.0,0.00023988,3]
[375139500,1753541450359,-152.0,0.00023988,3]
[375139501,1753541450369,-1754.0,0.00023988,3]
[375139502,1753541450379,-152.0,0.00023988,3]
[375139503,1753541450388,-160.0,0.00023988,3]
[375139504,1753541450398,-1754.0,0.00023988,3]
[375139505,1753541450412,-152.0,0.00023988,3]
[375139506,1753541450421,-1754.0,0.00023988,3]
[375139507,1753541450431,-152.0,0.00023988,3]
[375139508,1753541450441,-160.0,0.00023988,3]
[375139509,1753541450451,-1754.0,0.00023988,3]
[375139510,1753541450460,-152.0,0.00023988,3]
[375139511,1753541450470,-160.0,0.00023988,3]
[375139512,1753541450480,-1754.0,0.00023988,3]
[375139513,1753541450489,-152.0,0.00023988,3]
[375139514,1753541450499,-162.30786059,0.00023988,3]
[375139515,1753541450509,-1754.0,0.00023988,3]
[375139516,1753541450518,-152.0,0.00023988,3]
[375139517,1753541450528,-1754.0,0.00023988,3]
[375139518,1753541450540,-1754.0,0.00023988,3]
[375139519,1753541450551,-1754.0,0.00023988,3]
[375139520,1753541450561,-1754.0,0.00023988,3]
[375139521,1753541450570,-1754.0,0.00023988,3]
[375139522,1753541450580,-1754.0,0.00023988,3]
[375139523,1753541450590,-152.0,0.00023988,3]
[375139524,1753541450599,-1754.0,0.00023988,3]
[375139525,1753541450609,-152.0,0.00023988,3]
[375139526,1753541450618,-1754.0,0.00023988,3]
[375139527,1753541450627,-152.0,0.00023988,3]
[375139528,1753541450637,-1754.0,0.00023988,3]
[375139529,1753541450646,-152.0,0.00023988,3]
[375139530,1753541450656,-1754.0,0.00023988,3]
[375139531,1753541450665,-152.0,0.00023988,3]
[375139532,1753541450675,-1754.0,0.00023988,3]
[375139533,1753541450684,-152.0,0.00023988,3]
[375139534,1753541450694,-1754.0,0.00023988,3]
[375139535,1753541450704,-152.0,0.00023988,3]
[375139536,1753541450714,-1754.0,0.00023988,3]
[375139537,1753541450723,-1754.0,0.00023988,3]
[375139538,1753541450733,-1754.0,0.00023988,3]
[375139539,1753541450743,-1754.0,0.00023988,3]
[375139540,1753541450752,-255.96768648,0.00023988,3]
[375139541,1753541450761,-1754.0,0.00023988,3]
[375139542,1753541450771,-1754.0,0.00023988,3]
[375139543,1753541450780,-1754.0,0.00023988,3]
[375139544,1753541450789,-154.0,0.00023988,3]
[375139545,1753541450798,-156.29473911,0.00023988,3]
[375139546,1753541450809,-324.0,0.00023988,3]
[375139547,1753541450818,-324.0,0.00023988,3]
[375139548,1753541450829,-324.0,0.00023988,3]
[375139549,1753541450838,-324.0,0.00023988,3]
[375139550,1753541450848,-324.0,0.00023988,3]
[375139551,1753541450859,-160.0,0.00024,7]
[375139552,1753541450869,-215.9757969,0.00024,7]
[375139553,1753541450879,-231.25662632,0.00024,7]
[375139554,1753541450888,-151.0,0.00024,6]
[375139555,1753541450898,-160.11131898,0.00024,2]
[375139556,1753541450907,-526.41699184,0.00024,7]
[375139557,1753541450917,-526.41699184,0.00024,3]
[375139558,1753541450926,-517.18,0.00024001,2]
[375139559,1753541450935,-151.0,0.00024009,6]
[375139560,1753541450944,-151.0,0.00024014,7]
[375139561,1753541450953,-365.70832091,0.00024027,30]
[375139562,1753541450962,-1925.71,0.000241,7]
[375139563,1753541450972,-151.0,0.000241,7]
[375139564,1753541450981,-517.18,0.00024101,2]
[375139565,1753541450990,-212.704164,0.00024109,7]
[375139566,1753541450999,-460.0,0.00024109,2]
[375139567,1753541451009,-1718.41,0.00024109,2]
[375139568,1753541451018,-460.0,0.00024109,2]
[375139569,1753541451027,-559.65,0.00024109,2]
[375139570,1753541451036,-492.31,0.00024109,2]
[375139571,1753541451045,-2033.68,0.00024109,2]
[375139572,1753541451055,-1427.28,0.00024109,2]
[375139573,1753541451066,-1042.45,0.00024109,2]
[375139574,1753541451076,-769.3,0.00024109,2]
[375139575,1753541451086,-1681.34,0.00024109,2]
[375139576,1753541451095,-513.58,0.00024109,2]
[375139577,1753541451105,-669.27,0.00024109,2]
[375139578,1753541451115,-990.26,0.00024109,2]
[375139579,1753541451125,-460.0,0.00024109,2]
[375139580,1753541451135,-299.96499188,0.00024109,2]
[375139581,1753541451144,-487.0,0.0002411,2]
[375139582,1753541451154,-500.0,0.0002411,2]
[375139583,1753541451164,-760.0,0.00024138,2]
[375139584,1753541451173,-200.0,0.00024164,7]
[375139585,1753541451183,-4744.12,0.000242,7]
[375139586,1753541451193,-517.18,0.00024201,4]
[375139587,1753541451202,-517.29,0.00024301,3]
[375139588,1753541451212,-251.74967758,0.00024349,2]
[375139589,1753541451222,-460.0,0.00024383,2]
[375139590,1753541451231,-1718.41,0.00024383,2]
[375139591,1753541451323,-460.0,0.00024383,2]
[375139592,1753541451334,-559.65,0.00024383,2]
[375139593,1753541451345,-492.31,0.00024383,2]
[375139594,1753541451355,-2033.68,0.00024383,2]
[375139595,1753541451365,-1427.28,0.00024383,2]
[375139596,1753541451375,-1042.45,0.00024383,2]
[375139597,1753541451386,-769.3,0.00024383,2]
[375139598,1753541451396,-1681.34,0.00024383,2]
[375139599,1753541451406,-513.58,0.00024383,2]
[375139600,1753541451416,-669.27,0.00024383,2]
[375139601,1753541451425,-990.26,0.00024383,2]
[375139602,1753541451435,-460.0,0.00024383,2]
[375139603,1753541451444,-487.0,0.00024384,2]
[375139604,1753541451454,-500.0,0.00024384,2]
[375139605,1753541451464,-151.0,0.000244,6]
[375139606,1753541451473,-151.0,0.00024405,7]
[375139607,1753541451483,-1246.53,0.000245,7]
[375139608,1753541451493,-1752.85217206,0.000245,3]
[375139609,1753541451502,-33087.34,0.000245,2]
[375139610,1753541451512,-151.0,0.000245,7]
[375139611,1753541451522,-176.697433,0.000245,7]
[375139612,1753541451532,-391.82163,0.000245,7]
[375139613,1753541451542,-391.82163,0.000245,7]
[375139614,1753541451551,-806.64786777,0.00024513,2]
[375139615,1753541451561,-566.56942138,0.00024528,2]
[375139616,1753541451571,-800.0,0.00024543,2]
[375139617,1753541451582,-163.651151,0.00024549,3]
[375139618,1753541451592,-151.0,0.00024571,7]
[375139619,1753541451601,-800.0,0.00024571,2]
[375139620,1753541451611,-783.00217492,0.00024615,2]
[375139621,1753541451621,-800.0,0.00024624,2]
[375139622,1753541451630,-500.0,0.00024648,2]
[375139623,1753541451640,-500.0,0.00024657,2]
[375139624,1753541451650,-500.0,0.00024657,2]
[375139625,1753541451660,-500.0,0.00024657,2]
[375139626,1753541451669,-500.0,0.00024657,2]
[375139627,1753541451679,-500.0,0.00024657,2]
[375139628,1753541451688,-500.0,0.00024657,2]
[375139629,1753541451698,-500.0,0.00024657,2]
[375139630,1753541451707,-500.0,0.00024657,2]
[375139631,1753541451717,-500.0,0.00024657,2]
[375139632,1753541451726,-500.0,0.00024657,2]
[375139633,1753541451736,-500.0,0.00024657,2]
[375139634,1753541451745,-500.0,0.00024657,2]
[375139635,1753541451755,-500.0,0.00024657,2]
[375139636,1753541451765,-500.0,0.00024657,2]
[375139637,1753541451774,-509.37948221,0.00024657,2]
[375139638,1753541451783,-198.57514,0.00024657,7]
[375139639,1753541451793,-151.0,0.00024657,7]
[375139640,1753541451802,-460.0,0.00024657,2]
[375139641,1753541451812,-1718.41,0.00024657,2]
[375139642,1753541451821,-460.0,0.00024657,2]
[375139643,1753541451831,-559.65,0.00024657,2]
[375139644,1753541451841,-492.31,0.00024657,2]
[375139645,1753541451851,-2033.68,0.00024657,2]
[375139646,1753541451865,-1427.28,0.00024657,2]
[375139647,1753541451875,-1042.45,0.00024657,2]
[375139648,1753541451884,-769.3,0.00024657,2]
[375139649,1753541451894,-1681.34,0.00024657,2]
[375139650,1753541451903,-513.58,0.00024657,2]
[375139651,1753541451913,-669.27,0.00024657,2]
[375139652,1753541451922,-990.26,0.00024657,2]
[375139653,1753541451932,-460.0,0.00024657,2]
[375139654,1753541451941,-487.0,0.00024658,2]
[375139655,1753541451950,-500.0,0.00024658,2]
[375139656,1753541451960,-500.0,0.00024658,2]
[375139657,1753541451969,-500.0,0.00024659,2]
[375139658,1753541451978,-860.0,0.00024686,2]
[375139659,1753541451989,-552.26756637,0.0002469,10]
[375139660,1753541451998,-1902.0,0.00024744,2]
[375139661,1753541452007,-500.0,0.00024773,2]
[375139662,1753541452017,-500.0,0.00024779,2]
[375139663,1753541452026,-1750.59770739,0.000248,2]
[375139664,1753541452036,-207.506333,0.000248,7]
[375139665,1753541452045,-151.0,0.000248,7]
[375139666,1753541452055,-94977.13087496,0.000248,2]
[375139667,1753541452064,-151.0,0.000248,7]
[375139668,1753541452074,-151.0,0.000248,7]
[375139669,1753541452084,-237.039714,0.000248,7]
[375139670,1753541452093,-857.93313,0.000248,5]
[375139671,1753541452103,-151.0,0.000248,7]
[375139672,1753541452112,-391.82163,0.000248,7]
[375139673,1753541452122,-391.82163,0.000248,7]
[375139674,1753541452131,-6700.25080059,0.00024803,2]
[375139675,1753541452141,-1223.58969685,0.00024807,2]
[375139676,1753541452150,-2010.07524018,0.00024822,2]
[375139677,1753541452160,-3388.54871625,0.00024824,2]
[375139678,1753541452169,-4780.30673321,0.00024831,2]
[375139679,1753541452179,-213.0,0.0002484,12]
[375139680,1753541452188,-6700.25080059,0.00024841,2]
[375139681,1753541452197,-500.0,0.00024867,2]
[375139682,1753541452207,-852.91,0.00024886,4]
[375139683,1753541452216,-513.90136647,0.00024888,2]
[375139684,1753541452225,-2010.07524018,0.00024889,2]
[375139685,1753541452235,-151.0,0.000249,7]
[375139686,1753541452244,-151.0,0.000249,7]
[375139687,1753541452254,-391.82163,0.000249,7]
[375139688,1753541452263,-391.821637,0.000249,7]
[375139689,1753541452273,-676593.97995316,0.000249,2]
[375139692,1753542250020,159.906695,0.00013699,2]
[375139694,1753542451082,-3504.0459223,0.00018985,2]
[375139740,1753542632123,-366.43869628,0.00018795,2]
[375139743,1753542632133,-300.0,0.00019177,2]
[375139746,1753542632144,-300.0,0.00019177,2]
[375139748,1753542632153,-281.4835032,0.00019177,2]
[375139850,1753542638147,-18.5164968,0.00019177,2]
[375139852,1753542638158,-1200.0,0.00019177,2]
[375139854,1753542638167,-460.0,0.00019178,2]
[375139855,1753542638176,-218.76354355,0.00019178,2]
[375139857,1753542638186,-460.0,0.00019178,2]
[375139858,1753542638196,-460.0,0.00019178,2]
[375139859,1753542638205,-460.0,0.00019178,2]
[375139860,1753542638215,-709.04,0.00019178,2]
[375139861,1753542638224,-460.0,0.00019178,2]
[375139862,1753542638234,-716.01,0.00019178,2]
[375139863,1753542638244,-460.0,0.00019178,2]
[375139864,1753542638254,-460.0,0.00019178,2]
[375139865,1753542638263,-460.0,0.00019178,2]
[375139866,1753542638273,-460.0,0.00019178,2]
[375139867,1753542638283,-460.0,0.00019178,2]
[375139868,1753542638292,-186.547732,0.00019178,2]
[375139869,1753542638301,-460.0,0.0001945,2]
[375139870,1753542638311,-460.0,0.0001945,2]
[375139871,1753542638320,-460.0,0.0001945,2]
[375139872,1753542638329,-460.0,0.0001945,2]
[375139873,1753542638339,-594.7,0.0001945,2]
[375139874,1753542638349,-460.0,0.00019451,2]
[375139875,1753542638359,-460.0,0.00019451,2]
[375139876,1753542638369,-460.0,0.00019451,2]
[375139877,1753542638378,-460.0,0.00019451,2]
[375139878,1753542638388,-460.0,0.00019451,2]
[375139879,1753542638399,-167.51505385,0.00019451,2]
[375139880,1753542638408,-290.34696468,0.00019451,2]
[375139881,1753542638418,-460.0,0.00019451,2]
[375139882,1753542638428,-460.0,0.00019451,2]
[375139883,1753542638437,-460.0,0.00019451,2]
[375139884,1753542638447,-462.15664694,0.00019451,2]
[375139885,1753542638458,-460.0,0.00019451,2]
[375139886,1753542638467,-460.0,0.00019451,2]
[375139887,1753542638477,-762.63,0.00019451,2]
[375139888,1753542638486,-460.0,0.00019451,2]
[375139889,1753542638497,-460.0,0.00019451,2]
[375139890,1753542638506,-460.0,0.00019451,2]
[375139891,1753542638515,-460.0,0.00019451,2]
[375139892,1753542638526,-460.0,0.00019451,2]
[375139893,1753542638535,-460.0,0.00019451,2]
[375139894,1753542638544,-460.0,0.00019451,2]
[375139895,1753542638553,-367.90522131,0.00019451,2]
[375139896,1753542638563,-460.0,0.00019451,2]
[375139897,1753542638572,-420.06914309,0.00019451,2]
[375139898,1753542638585,-39.93085691,0.00019451,2]
[375139899,1753542638594,-700.56,0.00019451,2]
[375139900,1753542638605,-460.0,0.00019451,2]
[375139901,1753542638614,-208.49676844,0.00019451,2]
[375139902,1753542638631,-251.50323156,0.00019451,2]
[375139903,1753542638641,-460.0,0.00019451,2]
[375139904,1753542638650,-460.0,0.00019451,2]
[375139905,1753542638660,-460.0,0.00019451,2]
[375139906,1753542638670,-460.0,0.00019451,2]
[375139907,1753542638680,-460.0,0.00019451,2]
[375139908,1753542638689,-460.0,0.00019451,2]
[375139909,1753542638699,-460.0,0.00019452,2]
[375139910,1753542638708,-460.0,0.00019452,2]
[375139911,1753542638718,-391.34013104,0.00019452,2]
[375140071,1753543239190,159.906695,0.00013699,2]
[375140072,1753543288258,587.02,0.00026027,120]
[375140073,1753543537082,-4625.22098607,0.00018524,2]
[375140074,1753543594430,150.0,0.00019293,30]
[375140075,1753543594892,159.78,0.00021047,30]
[375140076,1753543595313,239.67,0.00022801,30]
[375140077,1753543632104,-374.77901393,0.00018524,2]
[375140078,1753543632129,-60.19381066,0.0001908,2]
[375140079,1753543645071,-1339.77058389,0.00018889,2]
[375140080,1753543680072,150.0,0.00019319,30]
[375140081,1753543680500,153.78,0.00021076,30]
[375140082,1753543680945,230.68,0.00022832,30]
[375140085,1753543759089,-844.1817624,0.00018356,2]
[375140086,1753543828421,5000.0,0.00018,2]
[375140125,1753543832356,-47.1029273,0.00018356,2]
[375140128,1753543832366,-1200.0,0.00019175,2]
[375140131,1753543832375,-186.547732,0.00019178,2]
[375140134,1753543832385,-1200.0,0.00019273,2]
[375140137,1753543832394,-300.0,0.00019274,2]
[375140140,1753543832404,-300.0,0.00019274,2]
[375140144,1753543832414,-300.0,0.00019274,2]
[375140147,1753543832423,-2608.35135174,0.00019275,2]
[375140151,1753543832435,-878.9,0.00019275,2]
[375140154,1753543832447,-91.72282874,0.00019275,2]
[375140156,1753543832456,-171.31162453,0.00019351,2]
[375140158,1753543832467,-843.91,0.00019441,3]
[375140159,1753543832476,-421.96,0.00019441,3]
[375140160,1753543832486,-210.98,0.00019441,3]
[375140161,1753543832495,-632.96,0.00019441,3]
[375140162,1753543832504,-460.0,0.00019447,2]
[375140163,1753543832514,-460.0,0.00019447,2]
[375140164,1753543832523,-460.0,0.00019447,2]
[375140166,1753543832533,-460.0,0.00019447,2]
[375140167,1753543832542,-460.0,0.00019447,2]
[375140170,1753543832552,-460.0,0.00019447,2]
[375140172,1753543832561,-460.0,0.00019447,2]
[375140173,1753543832570,-460.0,0.00019447,2]
[375140174,1753543832579,-481.65853939,0.00019447,2]
[375140175,1753543832588,-5100.29230092,0.00019447,2]
[375140176,1753543832598,-972.47161484,0.00019448,2]
[375140177,1753543832607,-211.88148485,0.00019448,2]
[375140178,1753543832620,-248.11851515,0.00019448,2]
[375140179,1753543832629,-460.0,0.00019448,2]
[375140180,1753543832639,-331.77340245,0.00019448,2]
[375140181,1753543832648,-460.0,0.00019448,2]
[375140182,1753543832658,-460.0,0.00019448,2]
[375140183,1753543832667,-460.0,0.00019448,2]
[375140184,1753543832677,-460.0,0.00019448,2]
[375140185,1753543832687,-460.0,0.00019448,2]
[375140186,1753543832697,-804.4,0.00019448,2]
[375140187,1753543832706,-460.0,0.00019448,2]
[375140188,1753543832716,-460.0,0.00019448,2]
[375140189,1753543832726,-460.0,0.00019448,2]
[375140190,1753543832735,-460.0,0.00019448,2]
[375140191,1753543832744,-583.62,0.00019448,2]
[375140192,1753543832754,-460.0,0.00019448,2]
[375140193,1753543832763,-460.0,0.00019448,2]
[375140194,1753543832773,-460.0,0.00019448,2]
[375140195,1753543832782,-460.0,0.00019448,2]
[375140196,1753543832792,-460.0,0.00019448,2]
[375140197,1753543832802,-1145.52,0.00019448,2]
[375140198,1753543832811,-460.0,0.00019448,2]
[375140199,1753543832821,-460.0,0.00019448,2]
[375140200,1753543832831,-460.0,0.00019448,2]
[375140201,1753543832840,-460.0,0.00019448,2]
[375140202,1753543832849,-460.0,0.00019448,2]
[375140203,1753543832858,-460.0,0.00019448,2]
[375140204,1753543832868,-460.0,0.00019448,2]
[375140205,1753543832877,-500.0,0.00019448,2]
[375140206,1753543832886,-500.0,0.00019448,2]
[375140207,1753543832895,-366.17907215,0.00019448,2]
[375140208,1753543832904,-299.17365242,0.00019448,2]
[375140209,1753543833031,-500.0,0.00019448,2]
[375140210,1753543833042,-500.0,0.00019448,2]
[375140211,1753543833052,-500.0,0.00019448,2]
[375140212,1753543833062,-382.2468756,0.00019448,2]
[375140213,1753543833073,-500.0,0.00019448,2]
[375140214,1753543833082,-500.0,0.00019448,2]
[375140215,1753543833092,-500.0,0.00019448,2]
[375140216,1753543833102,-500.0,0.00019448,2]
[375140217,1753543833112,-500.0,0.00019448,2]
[375140218,1753543833121,-500.0,0.00019448,2]
[375140219,1753543833131,-500.0,0.00019448,2]
[375140220,1753543833141,-500.0,0.00019448,2]
[375140221,1753543833151,-500.0,0.00019448,2]
[375140222,1753543833161,-500.0,0.00019448,2]
[375140223,1753543833171,-261.83635182,0.00019448,2]
[375140224,1753543833181,-500.0,0.00019448,2]
[375140225,1753543833192,-500.0,0.00019448,2]
[375140226,1753543833202,-500.0,0.00019448,2]
[375140227,1753543833212,-384.70288506,0.00019448,2]
[375140228,1753543833222,-481.00888939,0.00019448,2]
[375140229,1753543833232,-500.0,0.00019448,2]
[375140230,1753543833242,-500.0,0.00019448,2]
[375140231,1753543833252,-500.0,0.00019448,2]
[375140232,1753543833262,-197.33368802,0.00019448,2]
[375140233,1753543833272,-500.0,0.00019448,2]
[375140234,1753543833282,-500.0,0.00019448,2]
[375140235,1753543833292,-500.0,0.00019448,2]
[375140236,1753543833301,-500.0,0.00019448,2]
[375140237,1753543833311,-349.28369281,0.00019448,2]
[375140238,1753543833321,-500.0,0.00019448,2]
[375140239,1753543833331,-500.0,0.00019448,2]
[375140240,1753543833341,-335.90530512,0.00019448,2]
[375140241,1753543833351,-500.0,0.00019448,2]
[375140242,1753543833360,-499.99999999,0.00019448,2]
[375140243,1753543833370,-460.0,0.00019449,2]
[375140244,1753543833380,-460.0,0.00019449,2]
[375140245,1753543833390,-155.48105206,0.00019449,2]
[375140246,1753543833399,-460.0,0.00019449,2]
[375140247,1753543833410,-462.94924179,0.00019449,2]
[375140248,1753543833420,-461.68189417,0.00019449,2]
[375140249,1753543833440,-460.0,0.00019449,2]
[375140250,1753543833451,-461.99101554,0.00019449,2]
[375140251,1753543833462,-460.0,0.00019449,2]
[375140252,1753543833472,-460.0,0.00019449,2]
[375140253,1753543833483,-460.0,0.00019449,2]
[375140254,1753543833493,-460.0,0.00019449,2]
[375140255,1753543833503,-460.0,0.00019449,2]
[375140256,1753543833514,-460.0,0.00019449,2]
[375140257,1753543833524,-460.0,0.00019449,2]
[375140258,1753543833535,-460.0,0.00019449,2]
[375140259,1753543833545,-460.0,0.00019449,2]
[375140260,1753543833555,-462.68586432,0.00019449,2]
[375140261,1753543833566,-466.21546086,0.00019449,2]
[375140262,1753543833576,-460.0,0.00019449,2]
[375140263,1753543833587,-460.0,0.00019449,2]
[375140264,1753543833597,-460.0,0.00019449,2]
[375140265,1753543833607,-506.00902275,0.00019449,2]
[375140266,1753543833618,-460.0,0.00019449,2]
[375140267,1753543833628,-460.0,0.00019449,2]
[375140268,1753543833639,-460.0,0.00019449,2]
[375140269,1753543833648,-866.61,0.00019449,2]
[375140270,1753543833658,-460.0,0.00019449,2]
[375140271,1753543833668,-460.0,0.00019449,2]
[375140272,1753543833679,-500.0,0.00019449,2]
[375140273,1753543833689,-500.0,0.00019449,2]
[375140274,1753543833699,-460.0,0.00019449,2]
[375140275,1753543833709,-460.0,0.00019449,2]
[375140276,1753543833719,-460.0,0.00019449,2]
[375140277,1753543833729,-460.0,0.00019449,2]
[375140278,1753543833739,-460.0,0.00019449,2]
[375140279,1753543833749,-460.0,0.00019449,2]
[375140280,1753543833759,-460.0,0.00019449,2]
[375140281,1753543833769,-460.0,0.00019449,2]
[375140282,1753543833781,-460.0,0.00019449,2]
[375140283,1753543833791,-460.0,0.00019449,2]
[375140284,1753543833801,-460.0,0.00019449,2]
[375140285,1753543833811,-460.0,0.00019449,2]
[375140286,1753543833822,-460.0,0.00019449,2]
[375140287,1753543833832,-460.0,0.00019449,2]
[375140288,1753543833842,-460.0,0.00019449,2]
[375140289,1753543833852,-460.0,0.00019449,2]
[375140290,1753543833863,-460.0,0.00019449,2]
[375140291,1753543833873,-536.1805088,0.00019449,2]
[375140292,1753543833882,-460.0,0.00019449,2]
[375140293,1753543833892,-464.96080599,0.00019449,2]
[375140294,1753543833902,-460.0,0.00019449,2]
[375140295,1753543833913,-460.0,0.00019449,2]
[375140296,1753543833923,-460.0,0.00019449,2]
[375140297,1753543833934,-460.0,0.00019449,2]
[375140298,1753543833948,-460.0,0.00019449,2]
[375140299,1753543833958,-460.0,0.00019449,2]
[375140300,1753543833968,-216.40134364,0.00019449,2]
[375140301,1753543833979,-460.0,0.00019449,2]
[375140302,1753543833990,-460.0,0.00019449,2]
[375140303,1753543834000,-460.0,0.00019449,2]
[375140304,1753543834009,-460.0,0.00019449,2]
[375140305,1753543834020,-460.0,0.00019449,2]
[375140306,1753543834030,-460.0,0.00019449,2]
[375140307,1753543834040,-460.0,0.00019449,2]
[375140308,1753543834050,-460.0,0.00019449,2]
[375140309,1753543834059,-460.0,0.00019449,2]
[375140310,1753543834069,-460.0,0.00019449,2]
[375140311,1753543834079,-460.0,0.00019449,2]
[375140312,1753543834090,-460.0,0.00019449,2]
[375140313,1753543834100,-460.0,0.00019449,2]
[375140314,1753543834110,-460.0,0.00019449,2]
[375140315,1753543834120,-460.0,0.00019449,2]
[375140316,1753543834130,-460.0,0.00019449,2]
[375140317,1753543834140,-460.0,0.00019449,2]
[375140318,1753543834150,-460.0,0.00019449,2]
[375140319,1753543834160,-460.0,0.00019449,2]
[375140320,1753543834171,-602.85,0.00019449,2]
[375140321,1753543834181,-460.0,0.00019449,2]
[375140322,1753543834191,-460.0,0.00019449,2]
[375140323,1753543834200,-460.0,0.00019449,2]
[375140324,1753543834210,-460.0,0.0001945,2]
[375140325,1753543834220,-1000.0,0.0001945,2]
[375140326,1753543834230,-460.0,0.0001945,2]
[375140327,1753543834240,-171.62878727,0.0001945,2]
[375140328,1753543834250,-214.41033765,0.0001945,2]
[375140329,1753543834260,-460.0,0.0001945,2]
[375140330,1753543834270,-460.0,0.0001945,2]
[375140331,1753543834279,-154.35071347,0.0001945,2]
[375140332,1753543834289,-460.0,0.0001945,2]
[375140333,1753543834298,-504.73818587,0.0001945,2]
[375140334,1753543834308,-460.0,0.0001945,2]
[375140335,1753543834318,-460.0,0.0001945,2]
[375140336,1753543834327,-460.0,0.0001945,2]
[375140337,1753543834337,-460.0,0.0001945,2]
[375140338,1753543834347,-361.08042165,0.0001945,2]
[375140339,1753543834356,-460.0,0.0001945,2]
[375140340,1753543834366,-460.0,0.0001945,2]
[375140341,1753543834376,-469.61512153,0.0001945,2]
[375140342,1753543834385,-471.16920484,0.0001945,2]
[375140343,1753543834395,-460.0,0.0001945,2]
[375140344,1753543834404,-460.0,0.0001945,2]
[375140345,1753543834414,-460.0,0.0001945,2]
[375140346,1753543834424,-460.0,0.0001945,2]
[375140347,1753543834433,-460.0,0.0001945,2]
[375140348,1753543834444,-460.0,0.0001945,2]
[375140349,1753543834454,-460.0,0.0001945,2]
[375140350,1753543834463,-528.65986896,0.0001945,2]
[375140351,1753543834473,-460.0,0.0001945,2]
[375140352,1753543834482,-460.0,0.0001945,2]
[375140353,1753543834495,-460.0,0.0001945,2]
[375140354,1753543834505,-460.0,0.0001945,2]
[375140355,1753543834515,-460.0,0.0001945,2]
[375140356,1753543834525,-481.00048159,0.0001945,2]
[375140357,1753543834535,-460.0,0.0001945,2]
[375140358,1753543834544,-460.0,0.0001945,2]
[375140359,1753543834554,-460.0,0.0001945,2]